bitfinex/quotes_SOLUSD_20251030
["timestamp","ask_amount","ask_price","bid_price","bid_amount"]
[1761818026165,71.39901096,193.01,193.0,3.90725382]
[1761818026841,71.39901096,193.01,193.0,9.08860097]
[1761818027066,71.39901096,193.01,193.0,5.86134715]
[1761818027346,71.39901096,193.01,193.0,5.18134715]
[1761818027546,71.39901096,193.01,193.0,5.86134715]
[1761818027960,20.592,193.05,193.0,9.08860097]
[1761818028147,0.6,193.05,193.0,9.08860097]
[1761818030369,21.192,193.05,193.0,0.68]
[1761818030569,24.41925382,193.05,192.99,0.68]
[1761818031671,3.22725382,193.03,193.0,5.18134715]
[1761818031873,3.22725382,193.03,192.98,5.18188413]
[1761818032264,3.22725382,193.03,192.98,5.86188413]
[1761818032467,3.22725382,193.03,192.99,0.68]
[1761818033066,3.22725382,193.04,192.99,0.68]
[1761818033265,3.82725382,193.04,192.99,0.68]
[1761818033762,71.39901096,193.03,193.0,5.18134715]
[1761818034961,71.39901096,193.03,193.0,0.68]
[1761818035862,71.39901096,193.03,192.98,21.36384828]
[1761818036067,71.39901096,193.03,193.0,5.18134715]
[1761818037589,0.6,193.02,192.98,5.1818304]
[1761818037893,3.82725382,193.02,192.98,5.1818304]
[1761818038887,3.82725382,193.01,192.98,5.1818304]
[1761818039275,0.6,193.01,192.97,5.18215266]
[1761818039785,71.39901096,193.0,192.96,0.67]
[1761818039988,71.39901096,193.0,192.96,5.85237935]
[1761818040188,71.99901096,193.0,192.96,5.18237935]
[1761818040374,71.39901096,192.99,192.96,5.18237935]
[1761818040775,71.39901096,192.99,192.94,18.86886962]
[1761818041092,71.39901096,192.99,192.95,3.89725382]
[1761818041266,71.39901096,192.99,192.97,5.18215266]
[1761818042496,71.99901096,192.99,192.94,3.22725382]
[1761818042677,75.22626478,192.99,192.94,9.08021225]
[1761818042988,75.22626478,192.99,192.95,0.67]
[1761818043192,74.62626478,192.99,192.95,0.67]
[1761818043370,74.62626478,192.99,192.95,5.85243897]
[1761818043895,71.39901096,192.99,192.95,5.85243897]
[1761818044398,71.39901096,192.99,192.97,3.22725382]
[1761818044766,71.39901096,192.99,192.96,3.22725382]
[1761818044991,71.39901096,192.99,192.96,3.89725382]
[1761818045375,71.39901096,192.99,192.96,9.07949695]
[1761818046701,71.39901096,192.99,192.97,8.40929465]
[1761818049608,71.39901096,192.99,192.98,3.89725382]
[1761818050898,71.39901096,192.99,192.97,5.18204083]
[1761818051192,71.39901096,192.99,192.98,3.89725382]
[1761818052205,71.39901096,193.03,192.98,13.68608151]
[1761818052409,71.39901096,193.03,193.01,3.22725382]
[1761818053509,71.39901096,193.03,193.01,8.40821814]
[1761818054405,71.39901096,193.03,193.01,9.10821814]
[1761818055395,71.39901096,193.03,193.01,5.88096432]
[1761818056309,71.99901096,193.03,193.0,8.40854489]
[1761818056509,0.6,193.02,192.97,3.22725382]
[1761818056685,3.82725382,193.02,192.96,3.92725382]
[1761818056886,3.82725382,193.01,192.96,5.18242122]
[1761818057305,0.6,193.01,192.96,5.88242122]
[1761818057494,71.39901096,193.03,192.96,9.10967504]
[1761818057694,71.99901096,193.03,192.98,3.22725382]
[1761818058095,71.99901096,193.03,192.98,3.92725382]
[1761818058394,74.62626478,193.03,192.99,5.18161562]
[1761818058602,0.6,193.02,192.99,5.18161562]
[1761818059396,74.62626478,193.03,192.99,5.18161562]
[1761818059907,75.22626478,193.03,192.99,5.18161562]
[1761818060115,0.6,193.02,192.99,5.18161562]
[1761818060488,20.592,193.0,192.94,10.48882769]
[1761818060712,23.81925382,193.0,192.95,8.40994363]
[1761818061017,0.6,192.99,192.95,8.40994363]
[1761818061314,0.6,192.99,192.95,5.18268981]
[1761818061487,0.6,192.99,192.95,8.40994363]
[1761818061687,0.6,192.99,192.95,9.10994363]
[1761818062413,3.22725382,193.0,192.95,9.10994363]
[1761818062593,3.82725382,193.0,192.95,9.10994363]
[1761818063397,0.6,193.0,192.96,3.22725382]
[1761818064092,3.82725382,193.02,192.96,3.92725382]
[1761818064910,91.99101096,193.03,192.99,3.22725382]
[1761818065212,71.39901096,193.03,192.99,3.22725382]
[1761818065416,71.39901096,193.03,192.99,3.92725382]
[1761818065588,71.39901096,193.03,192.99,0.7]
[1761818065788,71.39901096,193.03,193.0,3.22725382]
[1761818066017,71.39901096,193.02,193.0,3.22725382]
[1761818067011,71.39901096,193.02,193.0,8.4085963]
[1761818068212,71.39901096,193.02,192.99,5.18153866]
[1761818068414,0.6,193.01,192.98,5.18181608]
[1761818069196,71.39901096,193.02,192.98,5.18181608]
[1761818069397,71.99901096,193.02,192.98,5.18181608]
[1761818069602,0.6,193.01,192.98,5.18181608]
[1761818070523,71.39901096,193.02,192.98,5.18181608]
[1761818070702,71.39901096,193.02,192.98,9.1290699]
[1761818070903,71.39901096,193.02,192.98,5.90181608]
[1761818070904,74.62626478,193.02,192.98,5.90181608]
[1761818071124,71.39901096,193.02,192.99,0.72]
[1761818071327,71.39901096,193.02,192.99,2.78493951]
[1761818071717,2.06493951,193.06,193.0,2.78493951]
[1761818071920,3.42396713,193.06,193.01,2.06493951]
[1761818072109,5.48890664,193.06,193.02,0.72]
[1761818072727,3.42396713,193.06,193.02,0.72]
[1761818072932,5.48890664,193.06,193.02,0.72]
[1761818073308,5.48890664,193.06,193.03,5.18054188]
[1761818073709,3.42396713,193.06,193.03,5.18054188]
[1761818074031,3.42396713,193.06,193.03,5.90054188]
[1761818076714,94.05595047,193.07,193.02,7.24574978]
[1761818076908,94.05595047,193.07,193.03,0.72]
[1761818077111,94.05595047,193.07,193.02,7.24574978]
[1761818077112,2.06493951,193.05,193.0,9.78882769]
[1761818077317,2.06493951,193.05,193.02,0.72]
[1761818078131,2.06493951,193.05,193.03,5.18054188]
[1761818078331,2.06493951,193.06,193.03,5.18054188]
[1761818078545,2.06493951,193.06,193.04,0.72]
[1761818078841,2.06493951,193.06,193.03,5.18054188]
[1761818079032,2.06493951,193.06,193.03,5.90054188]
[1761818079535,91.99101096,193.07,193.0,2.06493951]
[1761818079536,2.06493951,193.05,193.0,2.06493951]
[1761818079734,2.06493951,193.02,192.98,5.18188413]
[1761818080111,2.06493951,193.0,192.96,5.18241112]
[1761818080339,2.06493951,192.99,192.96,5.18241112]
[1761818080715,2.06493951,192.99,192.96,0.72]
[1761818081015,2.06493951,192.98,192.96,0.72]
[1761818081215,2.06493951,192.99,192.96,0.72]
[1761818081527,76.57935604,193.04,192.98,2.06493951]
[1761818081528,73.46395047,193.04,192.98,2.06493951]
[1761818081730,2.06493951,193.03,192.98,2.06493951]
[1761818082038,2.06493951,193.03,192.99,0.72]
[1761818082746,2.06493951,193.03,193.0,5.18134715]
[1761818083131,2.06493951,193.03,193.0,5.90134715]
[1761818083437,2.06493951,193.01,192.97,5.90209436]
[1761818083629,2.06493951,193.0,192.97,5.90209436]
[1761818084220,2.06493951,193.0,192.96,5.18237548]
[1761818084442,2.06493951,192.99,192.96,5.90237548]
[1761818084941,2.06493951,193.01,192.97,0.72]
[1761818086131,71.99901096,193.04,192.97,0.72]
[1761818086435,71.99901096,193.04,192.96,20.20336805]
[1761818086436,2.06493951,193.0,192.96,5.18237548]
[1761818086636,71.39901096,192.99,192.96,5.18237548]
[1761818086939,71.39901096,192.99,192.96,5.90237548]
[1761818087447,71.39901096,192.99,192.97,0.72]
[1761818089147,71.39901096,192.99,192.98,5.18188413]
[1761818089350,71.39901096,193.03,192.98,20.20153397]
[1761818089555,71.39901096,193.03,192.99,2.78493951]
[1761818089928,71.39901096,193.03,193.0,0.72]
[1761818091345,71.39901096,193.03,193.01,5.1810787]
[1761818091546,0.6,193.02,192.99,5.18135083]
[1761818091851,71.39901096,193.03,193.0,0.72]
[1761818092649,71.39901096,193.03,193.0,2.78493951]
[1761818093239,71.39901096,193.03,193.01,5.9010787]
[1761818093545,71.99901096,193.03,193.01,5.1810787]
[1761818093847,71.39901096,193.03,193.01,5.1810787]
[1761818095149,71.39901096,193.03,193.0,5.18134715]
[1761818095333,71.39901096,193.03,193.0,5.90134715]
[1761818095847,71.39901096,193.03,193.0,5.18134715]
[1761818096045,71.39901096,193.03,193.0,18.85471502]
[1761818097450,71.39901096,193.03,193.02,2.06493951]
[1761818097928,71.39901096,193.07,193.02,10.43882769]
[1761818098128,71.39901096,193.07,193.03,2.71493951]
[1761818098556,71.39901096,193.07,193.04,0.65]
[1761818099263,71.39901096,193.07,193.05,5.18000518]
[1761818100237,71.39901096,193.07,193.04,5.18021099]
[1761818100550,71.39901096,193.07,193.04,5.83021099]
[1761818100753,71.39901096,193.07,193.05,0.65]
[1761818100970,71.39901096,193.07,193.04,18.13089478]
[1761818101136,71.39901096,193.07,193.04,18.78089478]
[1761818101536,71.39901096,193.07,193.04,5.18021099]
[1761818101928,71.39901096,193.07,193.04,5.83021099]
[1761818102142,71.39901096,193.07,193.04,5.18021099]
[1761818102342,71.39901096,193.07,193.04,5.83021099]
[1761818102538,71.39901096,193.07,193.05,0.65]
[1761818102739,71.39901096,193.07,193.06,2.06493951]
[1761818102942,71.39901096,193.07,193.06,11.8537672]
[1761818103163,0.6,193.17,193.07,9.78882769]
[1761818103485,2.06493951,193.17,193.12,9.78882769]
[1761818103634,0.6,193.22,193.13,2.06493951]
[1761818103933,2.06493951,193.16,193.12,5.17812758]
[1761818104329,2.06493951,193.16,193.12,5.82812758]
[1761818105136,2.06493951,193.17,193.12,5.82812758]
[1761818105336,0.6,193.18,193.1,5.17841545]
[1761818105535,2.06493951,193.13,193.09,5.17890566]
[1761818105747,21.192,193.17,193.09,5.17890566]
[1761818105954,2.06493951,193.13,193.09,5.17890566]
[1761818106364,2.06493951,193.13,193.09,18.77623592]
[1761818106534,2.06493951,193.14,193.1,0.65]
[1761818106955,2.06493951,193.17,193.11,2.06493951]
[1761818107364,2.06493951,193.17,193.12,5.82812758]
[1761818107570,2.06493951,193.18,193.12,7.89306709]
[1761818107748,2.06493951,193.14,193.08,15.5702608]
[1761818108061,2.06493951,193.14,193.08,17.68296753]
[1761818108468,2.06493951,193.14,193.09,0.65]
[1761818108667,2.06493951,193.14,193.09,2.71493951]
[1761818108860,2.06493951,193.14,193.1,0.65]
[1761818109374,2.66493951,193.14,193.08,15.61802802]
[1761818109556,2.06493951,193.11,193.08,5.17920033]
[1761818109760,71.99901096,193.13,193.02,6.59463639]
[1761818109761,2.06493951,193.09,193.04,0.65]
[1761818109939,2.06493951,193.08,193.04,0.65]
[1761818110262,2.06493951,193.08,193.03,14.96936957]
[1761818110438,2.06493951,193.08,193.03,15.61936957]
[1761818110638,2.06493951,193.08,193.03,5.18054188]
[1761818110868,2.66493951,193.07,193.03,5.18054188]
[1761818111159,2.06493951,193.08,193.03,5.18054188]
[1761818111534,2.66493951,193.08,193.03,5.83054188]
[1761818111938,2.06493951,193.08,193.04,0.65]
[1761818112546,21.192,193.1,193.04,0.65]
[1761818112547,2.06493951,193.1,193.04,0.65]
[1761818113062,2.06493951,193.08,193.03,5.18054188]
[1761818113374,2.06493951,193.08,193.02,29.98659872]
[1761818113552,2.06493951,193.08,193.03,0.65]
[1761818113754,2.06493951,193.09,193.03,2.71493951]
[1761818113942,2.06493951,193.09,193.03,0.65]
[1761818114143,20.592,193.14,193.04,2.75493951]
[1761818114352,2.06493951,193.09,193.04,0.69]
[1761818115369,2.06493951,193.09,193.05,5.18000518]
[1761818116142,20.592,193.14,193.05,5.18000518]
[1761818116471,2.06493951,193.12,193.06,0.69]
[1761818117350,2.06493951,193.12,193.07,5.17946858]
[1761818117957,2.06493951,193.12,193.08,0.69]
[1761818118168,2.66493951,193.12,193.07,18.81814004]
[1761818118351,2.06493951,193.12,193.07,5.17946858]
[1761818118555,2.06493951,193.11,193.08,0.69]
[1761818118867,2.06493951,193.12,193.08,0.69]
[1761818119451,2.06493951,193.09,193.03,20.75391209]
[1761818119660,2.06493951,193.08,193.03,5.18041818]
[1761818119843,2.06493951,193.08,193.03,5.87041818]
[1761818120260,2.66493951,193.07,193.03,5.18041818]
[1761818120746,2.06493951,193.07,193.03,5.18041818]
[1761818120973,0.6,193.09,193.03,5.18041818]
[1761818121272,2.06493951,193.08,193.04,0.69]
[1761818121570,2.06493951,193.09,193.05,5.18000518]
[1761818122258,20.592,193.1,193.06,0.69]
[1761818122465,2.06493951,193.1,193.06,0.69]
[1761818122972,73.46395047,193.11,193.06,0.69]
[1761818123544,73.46395047,193.11,193.07,5.17946858]
[1761818124072,73.46395047,193.11,193.08,0.69]
[1761818124648,71.39901096,193.11,193.08,0.69]
[1761818124952,71.39901096,193.11,193.08,2.75493951]
[1761818125356,71.39901096,193.11,193.09,0.69]
[1761818125557,20.592,193.16,193.1,20.19026317]
[1761818125769,2.74493951,193.21,193.15,2.06493951]
[1761818125958,0.68,193.2,193.15,2.06493951]
[1761818126277,2.06493951,193.19,193.14,21.282]
[1761818126574,2.06493951,193.21,193.15,12.5437672]
[1761818126761,0.68,193.23,193.17,2.06493951]
[1761818126965,2.74493951,193.23,193.17,2.06493951]
[1761818127298,2.74493951,193.23,193.17,2.75493951]
[1761818127465,0.1,193.24,193.15,30.38082769]
[1761818127466,2.06493951,193.21,193.16,2.07538848]
[1761818127663,2.73493951,193.22,193.16,5.17681821]
[1761818127856,2.06493951,193.2,193.16,5.17681821]
[1761818128176,2.06493951,193.19,193.15,5.1772729]
[1761818128675,0.67,193.18,193.15,5.1772729]
[1761818128863,0.67,193.18,193.14,11.8537672]
[1761818128864,0.67,193.18,193.14,14.96640683]
[1761818129176,0.1,193.24,193.14,15.63640683]
[1761818129366,0.1,193.24,193.15,2.73493951]
[1761818129367,2.73493951,193.2,193.15,2.73493951]
[1761818129563,0.67,193.23,193.16,5.17705529]
[1761818129765,2.06493951,193.22,193.16,7.9119948]
[1761818130572,2.73493951,193.21,193.16,7.9119948]
[1761818131283,0.67,193.23,193.17,0.67]
[1761818131468,3.22066198,193.21,193.17,0.67]
[1761818131666,70.67901096,193.22,193.18,5.1765193]
[1761818131858,73.89967294,193.22,193.18,5.1765193]
[1761818132060,73.89967294,193.22,193.18,5.8465193]
[1761818132378,70.67901096,193.22,193.19,0.67]
[1761818134066,0.77,193.24,193.2,5.17598343]
[1761818134265,3.99066198,193.24,193.2,5.17598343]
[1761818134659,0.1,193.24,193.21,0.67]
[1761818134982,0.1,193.24,193.21,3.89066198]
[1761818135582,0.1,193.24,193.22,0.67]
[1761818136293,0.1,193.24,193.23,5.17517983]
[1761818138162,0.1,193.24,193.23,5.84517983]
[1761818139091,0.1,193.24,193.23,5.17517983]
[1761818139660,0.1,193.24,193.22,5.17541176]
[1761818140064,0.1,193.24,193.22,5.84541176]
[1761818140688,0.1,193.24,193.21,5.17565523]
[1761818140875,0.1,193.24,193.21,5.84565523]
[1761818141183,0.67,193.23,193.2,5.17593311]
[1761818141382,0.67,193.23,193.19,3.32066198]
[1761818141383,3.89066198,193.23,193.19,5.1761985]
[1761818141792,3.89066198,193.23,193.19,5.8461985]
[1761818141965,0.67,193.23,193.19,9.06686048]
[1761818142381,0.67,193.23,193.19,5.8461985]
[1761818142690,3.89066198,193.23,193.19,5.1761985]
[1761818143093,3.89066198,193.23,193.19,5.8461985]
[1761818144401,70.77901096,193.24,193.21,3.22066198]
[1761818144766,70.77901096,193.24,193.22,0.67]
[1761818145765,0.77,193.24,193.2,26.0193972]
[1761818146087,3.32066198,193.24,193.19,15.56137666]
[1761818146299,0.1,193.24,193.22,5.17544767]
[1761818146469,0.1,193.24,193.22,8.39610965]
[1761818146659,0.1,193.24,193.23,0.67]
[1761818147067,0.1,193.24,193.13,0.67]
[1761818147068,20.592,193.23,193.13,0.67]
[1761818147267,3.22066198,193.2,193.1,12.94611578]
[1761818147564,20.592,193.23,193.1,12.94611578]
[1761818147565,3.22066198,193.18,193.12,3.22066198]
[1761818148097,3.89066198,193.17,193.12,0.67]
[1761818148394,3.89066198,193.17,193.13,5.17785947]
[1761818150086,3.22066198,193.16,193.11,5.17839573]
[1761818150288,3.22066198,193.15,193.11,5.17839573]
[1761818150467,0.67,193.15,193.1,8.39932588]
[1761818150782,3.89066198,193.15,193.1,8.39932588]
[1761818150960,3.89066198,193.15,193.1,5.8486639]
[1761818151162,3.22066198,193.16,193.1,9.06932588]
[1761818151380,3.89066198,193.15,193.1,9.06932588]
[1761818151985,3.22066198,193.17,193.11,3.89066198]
[1761818152170,3.22066198,193.19,193.14,3.22066198]
[1761818152369,24.48266198,193.21,193.16,5.17705529]
[1761818152580,70.67901096,193.2,193.16,5.17705529]
[1761818152785,70.67901096,193.2,193.16,5.84705529]
[1761818152978,70.67901096,193.2,193.16,5.17705529]
[1761818153181,70.67901096,193.2,193.17,0.67]
[1761818154072,70.67901096,193.2,193.16,3.22066198]
[1761818154292,70.67901096,193.2,193.17,3.22066198]
[1761818155277,70.67901096,193.2,193.18,5.1765193]
[1761818155688,70.67901096,193.2,193.17,8.39740498]
[1761818155979,70.67901096,193.2,193.17,5.176743]
[1761818156798,70.67901096,193.2,193.17,5.846743]
[1761818157103,70.67901096,193.2,193.17,5.176743]
[1761818157400,70.67901096,193.2,193.17,21.33937319]
[1761818157589,70.67901096,193.2,193.17,22.04937319]
[1761818157781,70.67901096,193.2,193.18,3.22066198]
[1761818158093,70.67901096,193.2,193.19,3.22066198]
[1761818159004,70.67901096,193.2,193.19,5.17625135]
[1761818160215,74.56967294,193.2,193.15,5.17732332]
[1761818160386,3.89066198,193.19,193.15,5.17732332]
[1761818160785,0.67,193.18,193.15,5.17732332]
[1761818161191,0.67,193.18,193.14,21.34176982]
[1761818161787,0.67,193.18,193.14,5.17759138]
[1761818162691,3.22066198,193.17,193.11,18.78769101]
[1761818162890,3.22066198,193.17,193.12,5.17808365]
[1761818163101,3.89066198,193.16,193.1,18.18791366]
[1761818163311,3.89066198,193.16,193.1,8.39908597]
[1761818163608,73.89967294,193.2,193.14,3.22066198]
[1761818163809,74.56967294,193.2,193.14,3.22066198]
[1761818164428,71.34901096,193.2,193.15,3.22066198]
[1761818164598,71.34901096,193.2,193.16,3.22066198]
[1761818164818,71.34901096,193.2,193.14,9.78882769]
[1761818165026,71.34901096,193.2,193.15,3.22066198]
[1761818165312,0.67,193.19,193.15,5.17732332]
[1761818166218,3.22066198,193.17,193.13,5.17770714]
[1761818166518,0.67,193.19,193.13,9.10836912]
[1761818166723,3.89066198,193.19,193.13,22.0530178]
[1761818167522,0.67,193.18,193.13,21.3430178]
[1761818167990,3.22066198,193.19,193.13,22.0530178]
[1761818168190,74.56967294,193.2,193.14,3.22066198]
[1761818168388,71.34901096,193.2,193.14,3.22066198]
[1761818168597,70.67901096,193.19,193.14,3.22066198]
[1761818168805,70.67901096,193.19,193.14,13.00948967]
[1761818169013,70.67901096,193.19,193.14,13.71948967]
[1761818169607,70.67901096,193.19,193.16,3.22066198]
[1761818169998,70.67901096,193.19,193.18,3.22066198]
[1761818171490,70.67901096,193.19,193.18,5.1765193]
[1761818171721,70.67901096,193.19,193.18,3.22066198]
[1761818172394,70.67901096,193.19,193.17,8.39743335]
[1761818172831,71.34901096,193.19,193.16,8.39765657]
[1761818172998,0.67,193.18,193.11,0.71]
[1761818173198,0.67,193.18,193.13,3.22066198]
[1761818173400,3.89066198,193.18,193.13,3.22066198]
[1761818173624,0.67,193.18,193.14,5.17759138]
[1761818173803,0.67,193.17,193.14,5.17759138]
[1761818174000,0.67,193.17,193.09,23.44559303]
[1761818174001,3.22066198,193.15,193.09,23.44559303]
[1761818174204,3.22066198,193.14,193.09,25.95625501]
[1761818174811,0.67,193.13,193.09,22.73559303]
[1761818175217,0.67,193.13,193.1,5.1786639]
[1761818176634,3.22066198,193.14,193.1,5.1786639]
[1761818176810,70.67901096,193.19,193.1,21.34598564]
[1761818177014,3.22066198,193.16,193.11,0.72]
[1761818177239,3.22066198,193.16,193.12,5.17812758]
[1761818177437,3.88066198,193.16,193.12,5.17812758]
[1761818178009,70.67901096,193.18,193.13,0.72]
[1761818178313,23.81266198,193.2,193.14,3.22066198]
[1761818178527,0.66,193.21,193.16,3.22066198]
[1761818178947,0.66,193.21,193.16,3.94066198]
[1761818179144,0.66,193.21,193.17,3.22066198]
[1761818179453,73.89967294,193.23,193.18,5.1765193]
[1761818179747,0.66,193.22,193.18,5.1765193]
[1761818180123,3.88066198,193.22,193.18,5.1765193]
[1761818180537,0.66,193.21,193.18,5.1765193]
[1761818184140,0.66,193.21,193.17,8.39737864]
[1761818184343,0.66,193.21,193.17,9.11737864]
[1761818184655,3.22066198,193.22,193.17,9.11737864]
[1761818184817,0.66,193.22,193.18,3.22066198]
[1761818185017,0.66,193.22,193.17,5.89671666]
[1761818185239,0.66,193.21,193.18,3.22066198]
[1761818185419,0.66,193.21,193.17,21.33934685]
[1761818188727,0.66,193.21,193.18,3.22066198]
[1761818189250,74.61967294,193.23,193.18,3.22066198]
[1761818189440,0.72,193.22,193.18,3.22066198]
[1761818189947,0.72,193.22,193.19,21.33754172]
[1761818190250,70.67901096,193.23,193.2,3.22066198]
[1761818190852,71.39901096,193.23,193.2,3.22066198]
[1761818191420,0.72,193.22,193.19,21.33754172]
[1761818192245,0.72,193.22,193.2,3.22066198]
[1761818192829,20.592,193.19,193.1,5.1786639]
[1761818193030,3.22066198,193.16,193.1,8.39932588]
[1761818193228,3.94066198,193.18,193.12,3.22066198]
[1761818193451,2.78219664,193.17,193.1,5.8586639]
[1761818193747,2.06219664,193.16,193.11,2.06219664]
[1761818194123,0.72,193.15,193.12,5.17812758]
[1761818194335,30.75058998,193.19,193.12,5.17812758]
[1761818194550,0.72,193.18,193.13,2.06219664]
[1761818194756,30.75058998,193.19,193.15,2.06219664]
[1761818195138,31.47058998,193.19,193.15,2.06219664]
[1761818195338,0.72,193.18,193.14,2.06219664]
[1761818195520,0.72,193.18,193.13,2.74219664]
[1761818196452,0.72,193.18,193.14,5.17759138]
[1761818197463,0.72,193.18,193.14,7.23978802]
[1761818197671,30.75058998,193.19,193.14,20.86376648]
[1761818197955,30.75058998,193.19,193.15,2.06219664]
[1761818198155,80.83760094,193.19,193.17,2.06219664]
[1761818198334,80.83760094,193.19,193.18,5.1765193]
[1761818201361,81.55760094,193.19,193.18,5.1765193]
[1761818203938,80.83760094,193.19,193.18,5.1765193]
[1761818204550,81.55760094,193.19,193.16,20.18149746]
[1761818204751,81.55760094,193.19,193.16,18.11930082]
[1761818205162,81.55760094,193.19,193.08,0.68]
[1761818205163,80.83760094,193.19,193.08,0.68]
[1761818205364,22.65419664,193.16,193.1,17.02968823]
[1761818205553,0.72,193.15,193.1,17.02968823]
[1761818206056,0.72,193.15,193.11,2.06219664]
[1761818206664,20.592,193.16,193.12,5.17812758]
[1761818206963,23.37419664,193.16,193.12,5.17812758]
[1761818207149,0.72,193.16,193.12,5.17812758]
[1761818208466,0.72,193.16,193.12,7.92032422]
[1761818208964,30.75058998,193.19,193.14,2.06219664]
[1761818209269,10.15858998,193.19,193.17,2.06219664]
[1761818209651,10.15858998,193.19,193.17,2.74219664]
[1761818210260,10.15858998,193.19,193.15,0.68]
[1761818210862,10.15858998,193.19,193.14,9.78882769]
[1761818210863,0.72,193.18,193.14,2.06219664]
[1761818211171,2.06219664,193.18,193.1,2.06219664]
[1761818211369,2.78219664,193.18,193.12,9.78882769]
[1761818211738,2.78219664,193.18,193.12,10.46882769]
[1761818213764,2.78219664,193.18,193.13,5.17785947]
[1761818214648,2.78219664,193.18,193.13,5.85785947]
[1761818215766,0.72,193.18,193.13,5.85785947]
[1761818215950,2.78219664,193.18,193.13,5.85785947]
[1761818216572,7.23876323,193.18,193.12,9.78882769]
[1761818216775,2.06219664,193.14,193.09,9.78882769]
[1761818217154,2.78219664,193.14,193.09,10.46882769]
[1761818218076,2.78219664,193.14,193.09,15.62766695]
[1761818218678,2.78219664,193.14,193.1,0.66]
[1761818219053,2.06219664,193.14,193.1,0.66]
[1761818219556,2.06219664,193.15,193.1,0.66]
[1761818219959,2.72219664,193.15,193.1,0.66]
[1761818220275,2.06219664,193.15,193.1,0.66]
[1761818220573,0.66,193.14,193.1,5.83846904]
[1761818220780,2.06219664,193.13,193.08,9.78882769]
[1761818220989,2.72219664,193.12,193.08,9.78882769]
[1761818221272,2.72219664,193.12,193.07,9.78882769]
[1761818221665,2.72219664,193.12,193.06,14.96856455]
[1761818221854,70.67901096,193.11,193.07,0.66]
[1761818222266,70.67901096,193.11,193.07,5.83926926]
[1761818222465,0.66,193.1,193.06,9.78882769]
[1761818222670,2.06219664,193.09,193.05,5.17999201]
[1761818222852,0.66,193.1,193.04,14.9690938]
[1761818223061,75.85742991,193.11,193.04,14.9690938]
[1761818223062,2.06219664,193.08,193.04,14.9690938]
[1761818223369,2.72219664,193.09,193.04,14.9690938]
[1761818223569,0.66,193.08,193.04,14.9690938]
[1761818223977,2.72219664,193.08,193.03,5.18048478]
[1761818224282,2.72219664,193.08,193.02,18.13274112]
[1761818224466,2.72219664,193.08,193.03,0.66]
[1761818224669,2.72219664,193.08,193.02,18.13274112]
[1761818224852,2.06219664,193.08,193.02,18.13274112]
[1761818225056,0.66,193.07,193.02,18.13274112]
[1761818225263,0.66,193.07,193.01,12.51102433]
[1761818225264,2.72219664,193.07,193.01,5.18105879]
[1761818225570,2.06219664,193.06,193.01,5.18105879]
[1761818225769,2.72219664,193.06,193.01,5.18105879]
[1761818225960,0.66,193.05,193.01,5.18105879]
[1761818226661,0.66,193.05,193.02,9.78882769]
[1761818228475,0.66,193.05,193.03,5.18054188]
[1761818230000,12.9446865,193.13,193.03,5.18054188]
[1761818230001,50.0,193.16,193.03,20.19409323]
[1761818230169,0.66,193.18,193.14,2.06219664]
[1761818231390,0.66,193.18,193.16,2.06219664]
[1761818231763,0.66,193.18,193.11,30.38082769]
[1761818231976,2.72219664,193.18,193.11,25.77017419]
[1761818232194,2.72219664,193.18,193.12,2.06219664]
[1761818232367,2.06219664,193.16,193.11,27.83237083]
[1761818232564,2.06219664,193.16,193.11,25.77017419]
[1761818232784,2.72219664,193.15,193.1,7.24085557]
[1761818233089,2.72219664,193.15,193.1,5.17865893]
[1761818233395,0.66,193.14,193.1,5.17865893]
[1761818233574,2.72219664,193.14,193.09,2.06219664]
[1761818234192,0.69,193.13,193.09,7.24101403]
[1761818235777,0.69,193.13,193.1,2.06219664]
[1761818236393,0.69,193.13,193.09,7.24101403]
[1761818237477,0.69,193.13,193.1,2.06219664]
[1761818238876,70.67901096,193.12,193.1,7.24060195]
[1761818239379,0.69,193.11,193.1,7.24060195]
[1761818241200,70.67901096,193.12,193.11,9.78882769]
[1761818241495,0.69,193.18,193.11,12.54102433]
[1761818241795,0.69,193.18,193.17,2.06219664]
[1761818242684,0.69,193.18,193.16,2.06219664]
[1761818242886,0.69,193.18,193.16,7.23903615]
[1761818245509,0.69,193.18,193.15,7.2394711]
[1761818246593,0.69,193.18,193.15,5.17727446]
[1761818247712,70.67901096,193.17,193.15,5.17727446]
[1761818248021,70.67901096,193.17,193.15,7.2394711]
[1761818248219,70.67901096,193.17,193.14,2.06219664]
[1761818248413,71.32901096,193.16,193.11,2.06219664]